bitfinex-derivatives/quotes_SOLF0:USTF0_20250202
["timestamp","ask_amount","ask_price","bid_price","bid_amount"]
[1738498367410,1.5245,210.84,210.71,0.03450918]
[1738498367411,0.03496479,210.75,210.71,0.03450918]
[1738498367811,0.03312304,210.75,210.71,0.03493609]
[1738498368311,0.03312304,210.75,210.72,4.7477]
[1738498368714,0.03312304,210.75,210.71,0.03493609]
[1738498370011,0.03312304,210.75,210.72,4.7477]
[1738498370310,0.03312304,210.75,210.71,0.03493609]
[1738498371512,0.03312304,210.75,210.71,4.78283609]
[1738498371709,0.03312304,210.75,210.71,0.03493609]
[1738498372611,0.03312304,210.75,210.73,4.7475]
[1738498372810,0.03312304,210.75,210.71,0.03493609]
[1738498373215,0.03312304,210.75,210.72,4.7475]
[1738498373913,0.03312304,210.75,210.71,4.78283609]
[1738498374113,0.03312304,210.75,210.62,3.4]
[1738498374310,1.5245,210.84,210.62,3.4]
[1738498374508,1.5245,210.84,210.66,4.7488]
[1738498374913,1.5245,210.84,210.58,94.0]
[1738498375112,0.85759293,210.83,210.47,2.959]
[1738498375417,0.0344802,210.73,210.69,0.03638633]
[1738498375612,0.85776756,210.81,210.49,0.87265858]
[1738498375812,1.5245,210.84,210.49,0.87265858]
[1738498376011,4.7473,210.74,210.65,4.7493]
[1738498376214,3.0077,210.73,210.65,4.7493]
[1738498376716,0.03590994,210.71,210.67,0.03614109]
[1738498377112,0.03590994,210.71,210.69,4.7484]
[1738498377614,0.03590994,210.71,210.67,0.03614109]
[1738498377815,0.03590994,210.71,210.7,4.7482]
[1738498378017,0.03590994,210.71,210.67,0.03614109]
[1738498378315,0.03590994,210.71,210.69,4.7484]
[1738498378516,0.03590994,210.71,210.67,0.03614109]
[1738498379415,0.03590994,210.71,210.68,4.7486]
[1738498379612,0.03590994,210.71,210.67,0.03614109]
[1738498380917,0.03590994,210.71,210.69,4.7482]
[1738498381120,0.03590994,210.71,210.67,0.03614109]
[1738498381610,0.03590994,210.71,210.48,1.5474]
[1738498381817,3.0077,210.73,210.49,4.27247412]
[1738498382118,3.0077,210.73,210.63,4.7497]
[1738498382420,3.0077,210.73,210.49,3.4]
[1738498382620,3.0077,210.73,210.5,0.87253341]
[1738498382917,3.0077,210.73,210.59,0.03136833]
[1738498383112,0.0332585,210.64,210.59,0.03136833]
[1738498383311,0.0332585,210.64,210.59,4.7506]
[1738498383515,0.0332585,210.64,210.59,4.78385833]
[1738498383926,0.0332585,210.64,210.59,0.03325833]
[1738498385920,0.0332585,210.64,210.63,4.7497]
[1738498386123,5.85e-05,210.64,210.63,4.7497]
[1738498394129,5.85e-05,210.64,210.63,5.62169874]
[1738498394521,3.0156,210.8,210.76,4.7468]
[1738498395324,6.56161277,210.94,210.71,3.4]
[1738498395521,0.03252618,210.85,210.8,0.03069508]
[1738498395726,0.03252618,210.85,210.75,4.747]
[1738498395926,1.4262,210.86,210.76,0.0310149]
[1738498396127,6.2e-06,210.82,210.76,0.0310149]
[1738498396428,6.2e-06,210.82,210.81,4.7457]
[1738498407641,6.2e-06,210.82,210.81,6.2415]
[1738498409236,0.17176,210.97,210.81,2.3670723]
[1738498409543,0.17176,210.97,210.96,4.7423]
[1738498410345,6e-05,210.97,210.96,4.7423]
[1738498411734,6e-05,210.97,210.94,4.77527204]
[1738498411940,6e-05,210.97,210.94,0.03257204]
[1738498412337,0.0307627,210.99,210.94,0.03257204]
[1738498412935,0.0307627,210.99,210.94,4.77527204]
[1738498413140,0.0307627,210.99,210.94,0.03257204]
[1738498413544,0.0307627,210.99,210.94,4.77527204]
[1738498413743,0.0307627,210.99,210.94,0.03257204]
[1738498415645,0.0307627,210.99,210.95,4.7424]
[1738498415845,0.0307627,210.99,210.94,0.03257204]
[1738498417447,0.0307627,210.99,210.94,4.77517204]
[1738498418343,0.0307627,210.99,210.94,0.03257204]
[1738498419348,0.0307627,210.99,210.96,4.7423]
[1738498419646,0.0307627,210.99,210.94,0.03257204]
[1738498422350,0.0307627,210.99,210.94,4.77517204]
[1738498422551,0.0307627,210.99,210.94,0.03257204]
[1738498422851,0.0307627,210.99,210.95,4.7425]
[1738498423050,0.0307627,210.99,210.94,0.03257204]
[1738498423450,0.0307627,210.99,210.97,4.7421]
[1738498424451,0.0307627,210.99,210.98,4.7419]
[1738498426752,6.27e-05,210.99,210.98,4.7419]
[1738498429850,6.27e-05,210.99,210.96,4.7421]
[1738498430046,6.27e-05,210.99,210.94,0.03257204]
[1738498433562,6.27e-05,210.99,210.84,3.38]
[1738498433756,2.9857,211.04,210.84,3.38]
[1738498434653,0.03319268,210.96,210.92,0.03160203]
[1738498436052,0.03319268,210.96,210.93,4.7429]
[1738498436256,0.03319268,210.96,210.92,0.03160203]
[1738498438054,0.03319268,210.96,210.92,4.77480203]
[1738498438454,0.03319268,210.96,210.93,4.743]
[1738498439955,0.03319268,210.96,210.92,0.03160203]
[1738498441461,0.03319268,210.96,210.89,4.7438]
[1738498441756,0.03319268,210.96,210.83,45.14454624]
[1738498441958,4.7419,210.99,210.83,45.14454624]
[1738498442559,0.03344455,210.93,210.89,0.03101764]
[1738498442765,1.4098,211.03,210.83,45.14454624]
[1738498442962,0.03473222,210.93,210.89,0.03225363]
[1738498443163,1.4098,211.03,210.92,4.7432]
[1738498443363,0.0302487,210.93,210.89,0.03497704]
[1738498443566,1.4098,211.03,210.9,4.7436]
[1738498443769,0.03301806,210.93,210.9,4.7436]
[1738498443964,1.4098,211.03,210.9,4.7436]
[1738498444275,1.4098,211.03,210.83,45.14454624]
[1738498444467,0.03375335,210.99,210.94,0.03431911]
[1738498444674,0.03375335,210.99,210.81,0.94872159]
[1738498444675,14.28375335,210.99,210.81,0.94872159]
[1738498444865,14.25,210.99,210.81,0.94872159]
[1738498445266,17.63,211.0,210.74,22.30431778]
[1738498445467,4.7423,210.96,210.88,4.7441]
[1738498445663,1.4257,210.95,210.88,4.7441]
[1738498445866,0.03238764,210.94,210.74,22.30431778]
[1738498446168,1.4257,210.95,210.75,3.38]
[1738498446466,1.4257,210.95,210.74,3.38]
[1738498446771,1.5461,210.94,210.74,3.38]
[1738498446970,0.03335804,210.86,210.82,0.02190965]
[1738498448567,0.03335804,210.86,210.82,4.76710965]
[1738498448764,0.03335804,210.86,210.82,0.02190965]
[1738498451769,0.03335804,210.86,210.82,4.76720965]
[1738498451968,0.03335804,210.86,210.82,0.02190965]
[1738498452480,0.03335804,210.86,210.85,4.7448]
[1738498453469,0.03335804,210.86,210.82,0.02190965]
[1738498453973,0.03335804,210.86,210.85,4.7448]
[1738498454375,1.5461,210.94,210.82,0.02190965]
[1738498454670,1.4321,210.99,210.82,0.02190965]
[1738498454879,1.4321,210.99,210.75,0.87153044]
[1738498455569,7.023e-05,210.89,210.85,0.03123656]
[1738498455773,1.4321,210.99,210.92,4.7432]
[1738498456175,7.668,211.03,210.92,4.7432]
[1738498456671,0.03334581,211.0,210.95,0.03297585]
[1738498457275,0.03334581,211.0,210.95,4.77547585]
[1738498457971,0.03334581,211.0,210.96,4.7423]
[1738498458876,0.03334581,211.0,210.97,4.7419]
[1738498459078,0.03334581,211.0,210.95,0.03297585]
[1738498459976,0.03334581,211.0,210.75,9.494]
[1738498460178,17.1771,211.03,210.76,6.3447]
[1738498460577,4.7421,210.97,210.77,3.38]
[1738498460772,4.7421,210.97,210.78,1.5576]
[1738498461377,0.03363279,210.9,210.85,0.03107924]
[1738498462078,0.03363279,210.9,210.89,4.7439]
[1738498463275,0.03363279,210.9,210.86,6.1563]
[1738498464572,0.03363279,210.9,210.85,0.03107924]
[1738498465077,0.03363279,210.9,210.85,4.77587924]
[1738498465474,0.03363279,210.9,210.85,0.03107924]
[1738498465672,0.03363279,210.9,210.86,4.7445]
[1738498465869,0.03363279,210.9,210.85,0.03107924]
[1738498467078,0.03363279,210.9,210.85,4.77587924]
[1738498467280,0.03363279,210.9,210.85,0.03107924]
[1738498467875,0.03363279,210.9,210.87,4.7441]
[1738498468082,0.03363279,210.9,210.85,0.03107924]
[1738498470689,0.03363279,210.9,210.89,4.7439]
[1738498470881,3.279e-05,210.9,210.89,4.7439]
[1738498473788,3.279e-05,210.9,210.87,1.4818]
[1738498474392,3.279e-05,210.9,210.89,4.7439]
[1738498487199,3.279e-05,210.9,210.87,4.7443]
[1738498487593,3.279e-05,210.9,210.85,0.03107924]
[1738498487998,3.279e-05,210.9,210.88,4.7441]
[1738498488696,3.279e-05,210.9,210.89,4.7439]
[1738498505197,6.56161277,211.11,211.07,4.7398]
[1738498505607,6.56161277,211.11,211.01,3.38]
[1738498506308,0.03256754,211.08,211.04,0.03059315]
[1738498506900,0.03256754,211.08,211.04,4.77089315]
[1738498507505,0.03256754,211.08,211.04,0.03059315]
[1738498508810,0.03256754,211.08,211.06,4.7399]
[1738498509604,6.754e-05,211.08,211.06,4.7399]
[1738498513210,6.754e-05,211.08,211.07,3.38]
[1738498516711,6.754e-05,211.08,211.07,4.32755294]
[1738498517613,6.754e-05,211.08,211.07,0.94755294]
[1738498517812,6.754e-05,211.08,211.07,5.68735294]
[1738498518012,6.754e-05,211.08,211.07,9.06735294]
[1738498519318,6.754e-05,211.08,211.07,5.68735294]
[1738498522118,6.754e-05,211.08,210.89,12.13384455]
[1738498522319,1.80234503,211.27,210.9,0.87078647]
[1738498522514,1.80234503,211.27,210.89,3.38]
[1738498522515,0.8556891,211.26,210.89,3.38]
[1738498523419,0.03368108,211.1,211.05,0.03180812]
[1738498523615,0.03368108,211.1,210.97,4.7421]
[1738498523811,2.889,211.1,210.97,4.7421]
[1738498524115,2.889,211.1,210.89,3.38]
[1738498524913,0.0353573,211.02,210.97,0.03500273]
[1738498525117,0.0353573,211.02,210.89,3.38]
[1738498525320,0.0353573,211.02,210.86,2.9071]
[1738498525514,2.889,211.1,210.97,0.03525683]
[1738498525720,0.03482061,210.96,210.89,4.7437]
[1738498525920,2.889,211.1,210.87,3.38]
[1738498526117,0.03170296,210.95,210.9,0.03225395]
[1738498526320,2.889,211.1,210.87,1.4439]
[1738498526628,0.03513216,210.95,210.9,0.03298894]
[1738498526822,2.889,211.1,210.88,3.38]
[1738498527024,2.889,211.1,210.9,0.03405569]
[1738498527224,9.058e-05,210.95,210.88,3.38]
[1738498527518,2.889,211.1,210.98,0.03031397]
[1738498527726,2.889,211.1,210.89,2.31474737]
[1738498527923,2.889,211.1,211.03,4.7407]
[1738498528222,2.889,211.1,210.89,1.4439]
[1738498528523,0.03238363,211.09,211.04,0.03265245]
[1738498528719,1.5633,211.09,210.89,1.4439]
[1738498528925,1.59433384,211.09,211.04,0.0334131]
[1738498529121,1.5633,211.09,211.07,4.7398]
[1738498529422,1.59937711,211.09,211.04,0.03461935]
[1738498529624,1.59937711,211.09,211.07,4.7398]
[1738498529820,7.711e-05,211.09,211.07,4.7398]
[1738498530122,3.0024,211.23,211.04,0.03461935]
[1738498530429,3.0024,211.23,211.14,4.7381]
[1738498530727,3.0024,211.23,211.02,4.5055]
[1738498531027,3.0024,211.23,211.08,4.7396]
[1738498531227,0.0322235,211.15,211.1,0.03061491]
[1738498531731,1.39e-05,211.15,211.1,0.03460975]
[1738498532324,1.39e-05,211.15,211.14,4.7383]
[1738498532625,1.39e-05,211.15,211.14,8.1183]
[1738498535826,1.39e-05,211.15,211.1,0.03460975]
[1738498535827,1.39e-05,211.15,211.13,4.7384]
[1738498536030,1.39e-05,211.15,211.1,0.03460975]
[1738498536331,1.39e-05,211.15,211.11,4.7388]
[1738498536526,1.39e-05,211.15,211.1,0.03460975]
[1738498537028,1.39e-05,211.15,211.13,4.7385]
[1738498541631,1.39e-05,211.15,211.14,3.38]
[1738498541924,1.39e-05,211.15,211.13,4.7385]
[1738498542530,1.39e-05,211.15,211.1,3.41460975]
[1738498542733,1.39e-05,211.15,211.14,4.7383]
[1738498543533,1.39e-05,211.15,211.11,3.38]
[1738498544035,1.39e-05,211.15,211.13,4.7385]
[1738498545129,1.39e-05,211.15,211.14,4.7383]
[1738498551437,1.39e-05,211.15,211.14,8.1183]
[1738498557136,1.39e-05,211.15,211.14,4.7383]
[1738498557344,1.39e-05,211.15,211.1,0.03460975]
[1738498557345,1.39e-05,211.15,211.12,8.1185]
[1738498557639,1.39e-05,211.15,211.1,3.41460975]
[1738498558533,1.39e-05,211.15,211.14,4.7383]
[1738498564239,1.39e-05,211.15,211.11,4.7388]
[1738498564446,1.39e-05,211.15,211.01,10.27868831]
[1738498564637,1.39e-05,211.15,210.99,161.41916676]
[1738498564834,3.38,211.25,210.99,161.41916676]
[1738498565143,17.63,211.25,210.99,161.41916676]
[1738498565547,17.63,211.25,211.08,4.7396]
[1738498565846,0.03498496,211.14,211.1,0.03153318]
[1738498566146,9.738e-05,211.14,211.1,0.03641204]
[1738498566744,9.738e-05,211.14,211.13,4.7385]
[1738498567946,9.738e-05,211.14,211.13,8.1185]
[1738498568146,9.738e-05,211.14,211.13,4.7385]
[1738498568447,9.738e-05,211.14,211.1,0.03641204]
[1738498569042,9.738e-05,211.14,211.04,3.38]
[1738498569446,9.738e-05,211.14,211.04,164.79916676]
[1738498570246,9.738e-05,211.14,211.07,0.03348231]
[1738498570947,9.738e-05,211.14,211.13,4.7385]
[1738498571249,9.738e-05,211.14,211.04,3.38]
[1738498571446,9.738e-05,211.14,211.11,0.02993508]
[1738498572850,9.738e-05,211.14,211.04,3.38]
[1738498574149,9.738e-05,211.14,211.07,0.03595456]
[1738498576654,9.738e-05,211.14,211.13,4.7385]
[1738498576856,9.738e-05,211.14,211.04,3.38]
[1738498577060,9.738e-05,211.14,211.11,0.03315174]
[1738498577555,9.738e-05,211.14,210.96,65.42062208]
[1738498577756,9.738e-05,211.14,210.97,3.38]
[1738498578055,1.5181,211.2,210.97,3.38]
[1738498578447,6.2552,211.2,210.97,3.38]
[1738498578651,1.5181,211.2,210.97,3.38]
[1738498578852,0.0302486,211.11,211.06,0.03128067]
[1738498579251,0.0302486,211.11,210.99,3.38]
[1738498579457,0.0302486,211.11,211.06,0.03626179]
[1738498579753,0.03630427,211.11,211.06,0.03626179]
[1738498580354,0.03630427,211.11,210.99,3.38]
[1738498581154,0.03630427,211.11,210.96,65.42062208]
[1738498581458,2.9966,211.12,211.01,0.02003007]
[1738498581664,0.03639257,211.06,211.01,0.02003007]
[1738498581859,0.03639257,211.06,211.01,4.76113007]
[1738498582159,0.03639257,211.06,211.01,0.02003007]
[1738498582366,0.03639257,211.06,210.96,65.42062208]
[1738498582562,0.03639257,211.06,210.99,4.7416]
[1738498582863,0.03639257,211.06,210.93,3.38]
[1738498582864,0.03639257,211.06,210.87,22.65108917]
[1738498583063,4.7403,211.06,210.97,4.742]
[1738498583365,2.9966,211.12,210.87,26.02532173]
[1738498583561,0.03291074,211.04,210.87,3.38]
[1738498584065,4.7394,211.09,210.87,3.38]
[1738498584264,0.03117229,210.98,210.87,3.38]
[1738498585162,0.03117229,210.98,210.96,4.7423]
[1738498585564,0.03117229,210.98,210.87,3.38]
[1738498585756,0.03117229,210.98,210.93,4.7428]
[1738498585954,0.03117229,210.98,210.88,3.38]
[1738498586364,1.3107,211.08,210.88,3.38]
[1738498586761,0.03617999,210.95,210.88,3.38]
[1738498587068,1.3107,211.08,210.82,95.3422]
[1738498587264,0.03005369,210.94,210.83,4.25116646]
[1738498587469,0.03005369,210.94,210.88,4.7441]
[1738498587663,0.03005369,210.94,210.83,3.38]
[1738498588169,0.03005369,210.94,210.82,95.3422]
[1738498588365,0.03005369,210.94,210.82,93.78]
[1738498588764,0.03005369,210.94,210.78,113.47921903]
[1738498588964,4.77295369,210.94,210.81,4.7457]
[1738498589164,1.3124,210.98,210.78,113.47921903]
[1738498589564,0.03572309,210.9,210.78,113.47921903]
[1738498589764,0.03572309,210.9,210.74,24.26528293]
[1738498590170,1.3124,210.98,210.74,24.26528293]
[1738498590566,0.03040027,210.84,210.74,24.26528293]
[1738498590973,4.77550027,210.84,210.74,24.26528293]
[1738498591271,2.9054,210.83,210.74,24.26528293]
[1738498591575,2.9054,210.83,210.65,3.38]
[1738498591777,0.03040027,210.84,210.67,3.0275]
[1738498591976,2.9054,210.96,210.68,0.87182978]
[1738498592577,0.03308396,210.84,210.68,0.87182978]
[1738498592772,0.03308396,210.84,210.69,3.38]
[1738498592974,2.9054,210.96,210.69,3.38]
[1738498593475,0.03444466,210.79,210.7,0.8717413]
[1738498593776,2.9054,210.96,210.69,3.38]
[1738498593976,0.03595169,210.77,210.7,0.87173377]
[1738498594271,0.03595169,210.77,210.69,3.38]
[1738498594272,17.1554,210.96,210.69,3.38]
[1738498594576,0.0320206,210.76,210.69,3.38]
[1738498594976,14.25,210.94,210.67,3.0275]
[1738498595174,0.0313289,210.75,210.67,3.0275]
[1738498595476,4.7455,210.82,210.7,4.7481]
[1738498595673,2.9238,210.81,210.64,4.9178]
[1738498595879,0.03280723,210.73,210.64,4.9178]
[1738498596181,2.9238,210.81,210.64,1.5378]
[1738498596478,0.03100285,210.71,210.68,4.7486]
[1738498596777,4.7462,210.79,210.68,4.7486]
[1738498597086,0.03441236,210.72,210.62,93.82]
[1738498597271,0.03441236,210.72,210.6,1.5319]
[1738498597475,0.03441236,210.72,210.58,3.38]
[1738498597774,4.7473,210.74,210.63,4.7496]
[1738498597970,1.3147,210.78,210.55,1.4743]
[1738498598168,0.03166676,210.67,210.63,4.7496]
[1738498598576,4.7471,210.75,210.63,4.7496]
[1738498598772,0.03552677,210.67,210.64,4.7495]
[1738498598979,0.03552677,210.67,210.55,6.3862]
[1738498599179,1.3147,210.78,210.55,6.3862]
[1738498599477,9.707e-05,210.63,210.55,6.3862]
[1738498599672,1.3147,210.78,210.55,6.3862]
[1738498599879,1.3147,210.78,210.66,4.749]
[1738498600181,2.9238,210.81,210.55,6.3862]
[1738498600374,2.9238,210.81,210.56,0.87227428]
[1738498600775,0.03096858,210.7,210.66,0.0303]
[1738498600971,0.03096858,210.7,210.57,0.87225442]
[1738498601272,2.9238,210.81,210.61,0.0303]
[1738498601273,0.03572104,210.65,210.61,0.0303]
[1738498601479,2.9238,210.81,210.61,0.0303]
[1738498601679,2.9238,210.81,210.56,0.87224518]
[1738498601882,2.9238,210.81,210.69,4.7484]
[1738498602279,2.9238,210.81,210.72,4.7477]
[1738498602675,2.9238,210.81,210.74,0.03128108]
[1738498602880,0.03209145,210.79,210.74,0.03128108]
[1738498603181,0.03500066,210.79,210.66,3.38]
[1738498603381,0.03500066,210.79,210.74,0.03477615]
[1738498603582,2.9238,210.81,210.64,4.7494]
[1738498603779,2.9238,210.81,210.57,3.38]
[1738498603981,14.25,210.8,210.57,3.38]
[1738498604182,17.63,210.8,210.56,1.5312]
[1738498604779,0.03244798,210.7,210.66,0.03124489]
[1738498605084,17.63,210.8,210.56,1.5312]
[1738498605287,4.7477,210.73,210.56,1.5312]
[1738498605877,4.7477,210.73,210.64,4.7494]
[1738498606182,4.7478,210.72,210.64,4.7494]
[1738498606376,1.46690297,210.71,210.56,1.5312]
[1738498606577,1.46690297,210.71,210.62,4.7498]
[1738498606775,1.432,210.71,210.62,4.7498]
[1738498607083,0.0326359,210.69,210.62,4.7499]
[1738498607383,0.0326359,210.69,210.56,1.5312]
[1738498607787,1.432,210.71,210.61,4.7501]
[1738498608084,0.03106392,210.65,210.61,4.7501]
[1738498608582,0.03106392,210.65,210.59,4.7505]
[1738498608984,0.03106392,210.65,210.56,1.5312]
[1738498609776,0.03106392,210.65,210.64,4.7495]
[1738498610784,0.03106392,210.65,210.63,4.7496]
[1738498610985,0.03106392,210.65,210.56,1.5312]
[1738498613193,0.03106392,210.65,210.31,9.5138]
[1738498613396,0.03106392,210.65,210.41,2.9535]
[1738498613587,2.7338,210.66,210.41,2.9535]
[1738498613793,0.0328369,210.55,210.52,4.7522]
[1738498613990,2.7338,210.66,210.48,3.38]
[1738498615295,0.03174053,210.59,210.55,0.03276674]
[1738498618896,0.03174053,210.59,210.58,4.7509]
[1738498619092,1.3164,210.73,210.55,0.03276674]
[1738498619392,1.3164,210.73,210.63,4.7497]
[1738498619996,4.7482,210.7,210.62,4.75]
[1738498620196,1.3164,210.73,210.56,2.9847]
[1738498620406,0.03100744,210.68,210.64,0.03453577]
[1738498621405,0.03100744,210.68,208.99,46.55787225]
[1738498621699,14.25,210.69,210.41,3.0476]
[1738498621907,1.3481,210.68,210.41,3.0476]
[1738498622107,1.3481,210.68,210.42,0.87294396]
[1738498622700,1.3481,210.68,210.41,3.0476]
[1738498622701,0.03209935,210.57,210.53,0.03004166]
[1738498622899,1.3481,210.68,210.41,3.0476]
[1738498623103,1.3481,210.68,210.42,0.87294711]
[1738498623397,4.7503,210.61,210.49,4.7528]
[1738498623603,1.3481,210.68,210.43,3.38]
[1738498623905,4.7503,210.61,210.49,4.7528]
[1738498624105,4.7503,210.61,210.43,3.38]
[1738498624106,1.3481,210.68,210.43,3.38]
[1738498624314,1.3481,210.68,210.44,1.4814]
[1738498624503,0.03302539,210.58,210.53,0.03605093]
[1738498624804,4.7507,210.59,210.5,4.7526]
[1738498625007,0.03166722,210.58,210.53,0.0330687]
[1738498625211,4.7511,210.57,210.48,4.753]
[1738498625405,0.03231845,210.58,210.44,1.4814]
[1738498625602,0.03231845,210.58,210.53,0.03237076]
[1738498625913,0.03231845,210.58,210.53,0.03289654]
[1738498625914,0.03245112,210.58,210.53,0.03289654]
[1738498626510,4.7512,210.57,210.53,0.03289654]
[1738498626810,0.03245112,210.58,210.53,0.03289654]
[1738498627303,0.03245112,210.58,210.44,1.4814]
[1738498627503,14.25,210.61,210.41,3.0476]
[1738498627703,4.7526,210.51,210.44,4.754]
[1738498627907,14.25,210.61,210.41,3.0476]
[1738498628410,4.7522,210.52,210.41,3.0476]
[1738498628606,4.7522,210.52,210.49,0.03194627]
[1738498628907,4.7522,210.52,210.48,0.03294512]
[1738498629308,4.78226972,210.52,210.48,0.03294512]
[1738498630114,4.7525,210.51,210.48,0.03294512]
[1738498630614,0.03006972,210.52,210.48,0.03294512]
[1738498632214,4.7527,210.51,210.48,0.03294512]
[1738498632617,0.03006972,210.52,210.48,0.03294512]
[1738498632812,1.4571,210.66,210.48,0.03294512]
[1738498633211,1.4571,210.66,210.41,3.0476]
[1738498633418,194.0,210.65,210.41,3.0476]
[1738498633617,0.85838098,210.64,210.41,3.0476]
[1738498633818,0.85838098,210.64,210.44,4.7539]
[1738498634014,0.03620729,210.55,210.5,0.0317619]
[1738498634216,0.03620729,210.55,210.36,1.5014]
[1738498634519,4.7534,210.47,210.4,4.7548]
[1738498635618,0.0351129,210.46,210.41,4.78595294]
[1738498636015,4.7531,210.49,210.41,4.7547]
[1738498636319,0.03248746,210.46,210.41,0.03125294]
[1738498636719,4.7532,210.48,210.37,1.5346]
[1738498636918,0.0320334,210.46,210.41,0.03125294]
[1738498637119,4.7539,210.45,210.41,0.03125294]
[1738498637320,0.0320334,210.46,210.41,0.03125294]
[1738498639121,4.7541,210.44,210.41,0.03125294]
[1738498639421,0.0320334,210.46,210.41,0.03125294]
[1738498639822,4.7547,210.42,210.27,93.98]
[1738498640021,4.7547,210.42,210.31,2.8611]
[1738498640216,4.7533,210.48,210.31,2.8611]
[1738498640419,1.4606,210.47,210.31,2.8611]
[1738498640821,4.7545,210.42,210.34,4.7562]
[1738498641020,1.4606,210.47,210.31,2.8611]
[1738498641021,0.03285097,210.41,210.31,1.4142]
[1738498641218,0.03285097,210.41,210.28,1.5641]
[1738498641421,4.7559,210.36,210.28,6.3216]
[1738498641718,0.03135269,210.37,210.28,1.5641]
[1738498641920,4.7559,210.36,210.28,1.5641]
[1738498642122,0.03135269,210.37,210.16,1.4226]
[1738498642422,194.0,210.45,210.17,6.3049]
[1738498642624,0.03361749,210.29,210.24,4.7585]
[1738498642814,194.0,210.44,210.17,6.3049]
[1738498643214,194.0,210.44,210.18,0.87392997]
[1738498643623,4.7556,210.38,210.18,0.87392997]
[1738498643824,194.0,210.44,210.18,0.87392997]
[1738498644025,0.03143097,210.3,210.26,0.03413178]
[1738498644325,4.7543,210.43,210.18,0.87392997]
[1738498644523,4.7543,210.43,210.19,0.87372965]
[1738498644724,4.7543,210.43,210.31,4.7569]
[1738498645023,1.4606,210.47,210.29,3.38]
[1738498645220,1.4606,210.47,210.3,3.0372]
[1738498645521,0.03243372,210.4,210.36,0.03607003]
[1738498647026,0.03243372,210.4,210.36,4.79167003]
[1738498647226,0.03243372,210.4,210.36,0.03607003]
[1738498649624,4.78743372,210.4,210.36,0.03607003]
[1738498650222,0.03243372,210.4,210.36,0.03607003]
[1738498651123,0.03243372,210.4,210.36,4.79187003]
[1738498651323,0.03243372,210.4,210.36,0.03607003]
[1738498651530,4.78743372,210.4,210.36,0.03607003]
[1738498651833,0.03243372,210.4,210.36,0.03607003]
[1738498652231,1.4322,210.5,210.39,4.7552]
[1738498652431,1.4322,210.5,210.36,0.03607003]
[1738498652633,1.4322,210.5,210.3,3.0372]
[1738498652832,6.1849,210.5,210.3,3.0372]
[1738498653035,1.5213,210.54,210.3,3.0372]
[1738498653231,1.5213,210.54,210.31,0.87334236]
[1738498653427,0.03204858,210.44,210.4,0.03498202]
[1738498653632,1.5213,210.54,210.4,0.03498202]
[1738498653834,1.5213,210.54,210.31,0.87335944]
[1738498654534,1.5213,210.54,210.32,3.38]
[1738498654729,0.03477356,210.45,210.4,0.03301814]
[1738498655134,0.03477356,210.45,210.32,3.38]
[1738498655335,0.03477356,210.45,210.4,0.03094707]
[1738498655534,1.5213,210.54,210.4,0.03094707]
[1738498655732,0.03255294,210.45,210.4,0.03094707]
[1738498655932,0.03255294,210.45,210.32,3.38]
[1738498656128,0.03255294,210.45,210.4,0.03485652]
[1738498656327,0.85879638,210.53,210.4,0.03485652]
[1738498656532,0.03368514,210.45,210.32,4.7567]
[1738498656831,4.7538,210.45,210.44,0.00252425]
[1738498657030,17.63,210.48,210.3,3.0372]
[1738498657237,3.0155,210.47,210.3,3.0372]
[1738498657430,3.0155,210.47,210.33,4.7564]
[1738498657627,3.0155,210.47,210.3,3.0372]
[1738498658329,0.03614346,210.41,210.36,0.0351022]
[1738498659326,194.0,210.52,210.36,3.4151022]
[1738498659526,1.4186,210.53,210.36,3.4151022]
[1738498659728,1.4186,210.53,210.46,4.7536]
[1738498660334,6.56161277,210.58,210.36,3.38]
[1738498660528,0.03472319,210.52,210.47,0.03575161]
[1738498661328,4.753,210.49,210.47,0.03575161]
[1738498661734,0.03472319,210.52,210.36,3.38]
[1738498661933,4.7533,210.48,210.36,3.38]
[1738498662130,14.27,210.57,210.37,4.7554]
[1738498662334,0.85867485,210.56,210.31,1.5339]
[1738498662531,4.7533,210.48,210.31,1.5339]
[1738498662736,0.03062774,210.46,210.41,0.03041108]
[1738498662936,1.4484,210.53,210.41,0.03041108]
[1738498663233,0.03617415,210.46,210.31,1.5339]
[1738498663433,0.03617415,210.46,210.45,0.03488042]
[1738498663637,1.4484,210.53,210.31,1.5339]